Cogmind - Beta 14 @@@ ROGUE MODE // 2024.11.09 @ 22:43:22 Player: Faunarr Result: Destroyed by S-10 Pest with Light Assault Rifle Performance ------------- Evolutions (0) 0 Regions Visited (2) 400 Robots Destroyed (8) 40 Value Destroyed (106) 106 Prototype IDs (0) 0 Alien Tech Used (0) 0 Bonus (-252) -252 TOTAL SCORE: 294 Bonus ------- Friendly Fire -252 Cogmind --------- Core Integrity 0/250 Matter 300/300 Energy 100/100 System Corruption 0% Temperature Cool (0) Movement Core (100) Ox1 Location -10/Mines Parts ------- > --- POWER (1) -------- (None) > --- PROPULSION (2) --- (None) > --- UTILITY (2) ------ Small Storage Unit > --- WEAPON (2) ------- (None) > --- INVENTORY (8) ---- Light Ion Engine Heat Sink Peak State ------------ > --- POWER ------------ Light Ion Engine > --- PROPULSION ------- Light Treads Aluminum Leg > --- UTILITY ---------- Small Storage Unit Medium Matter Pod > --- WEAPON ----------- Light Assault Rifle Welding Torch > --- INVENTORY -------- (None) [Rating: 7] Favorites ----------- Power Light Ion Engine Engine Light Ion Engine Propulsion Aluminum Leg Treads Light Treads Leg Aluminum Leg Utility Small Storage Unit Storage Small Storage Unit Protection Backup Plating I Weapon Light Assault Rifle Energy Gun EM Pulse Gun Ballistic Gun Light Assault Rifle Special Weapon Welding Torch Build | -11 -10 -10 ------- Run | Yrd Mat Min Slots Evolved . | . . . Power . | . . . Propulsion . | . . . Utility . | . . . Weapon . | . . . Parts Attached 9 | 6 2 1 Power 1 | 1 . . Engine 1 | 1 . . Core . | . . . Reactor . | . . . Propulsion 2 | 2 . . Treads 1 | 1 . . Leg 1 | 1 . . Wheel . | . . . Hover . | . . . Flight . | . . . Utility 2 | 2 . . Device . | . . . Storage 2 | 2 . . Processor . | . . . Hackware . | . . . Protection . | . . . Artifact . | . . . Weapon 4 | 1 2 1 Energy Gun 1 | . . 1 Energy Cannon . | . . . Ballistic Gun 2 | 1 1 . Ballistic Cannon . | . . . Launcher . | . . . Special Weapon 1 | . 1 . Impact Weapon . | . . . Slashing Weapon . | . . . Piercing Weapon . | . . . Special Melee Weapon . | . . . Unidentified Prototypes . | . . . Parts Lost 6 | . 2 4 Power . | . . . Propulsion 2 | . . 2 Utility 1 | . 1 . Weapon 3 | . 1 2 Highest Loss Streak 4 | . 2 4 To Critical Strikes . | . . . Average Slot Usage (%) 63 | . 69 57 Engine 1 | . 3 . Treads 13 | . 14 12 Leg 13 | . 14 12 Storage 14 | . 15 14 Protection 2 | . 4 . Energy Gun 2 | . . 5 Ballistic Gun 12 | . 12 11 Special Weapon 2 | . 4 . Peak Build Rating 7 | 6 7 5 Average Rating 4 | 4 4 4 On Entrance 3 | . 6 4 Naked Turns . | . . . Heaviest Build 12 | 11 12 8 Greatest Support 20 | 20 20 20 Greatest Overweight (x) 1 | . . 1 Average Overweight (x) . | . . . Largest Inventory Capacity 8 | 8 8 8 Average Capacity 7 | 7 8 8 Most Carried 2 | 1 2 2 Average Carried 1 | . 1 2 Final Capacity 8 | 8 8 8 Final Carried 2 | . 2 2 Class Distribution -------------------- 100% | Mutant Dominant Class ---------------- Mutant | -10/Materials Mutant | -10/Mines Resources | -11 -10 -10 ----------- Run | Yrd Mat Min Matter Collected 340 | 262 47 31 Remotely . | . . . Salvage Created 342 | 60 201 81 Parts 15 | 5 7 3 Haulers Intercepted . | . . . Recyclers Shooed 2 | . 2 . Parts Field Recycled . | . . . Retrieved Matter . | . . . Parts Self-Destructed . | . . . Prevented . | . . . Kills | -11 -10 -10 ------- Run | Yrd Mat Min Combat Hostiles Destroyed 3 | . 2 1 Guns 3 | . 2 1 Classes Destroyed 5 | 2 2 1 Worker 2 | 1 1 . Tunneler 1 | 1 . . Recycler 1 | . 1 . Swarmer 1 | . . 1 Grunt 2 | . 2 . Thug 1 | . . 1 Best Kill Streak 2 | 1 2 1 Combat Bots Only 2 | . 2 1 Max Kills in Single Turn 1 | 1 1 1 Gunslinging . | . . . Exploded . | . . . Melee . | . . . Uniques/NPCs Destroyed . | . . . Combat | -11 -10 -10 -------- Run | Yrd Mat Min Hostile Shots Fired 100 | . 42 58 Missed 26 | . 9 17 Damage Taken 806 | . 454 352 Core 257 | . 85 172 Absorbed by Shields . | . . . Regen/Repaired (Parts) 5 | . 5 . Core Remaining (%) 100 | 100 . . Volleys Fired 110 | 22 50 38 Largest 1 | 1 1 1 Hottest 40 | 20 20 40 Shots Fired 110 | 22 50 38 Gun 110 | 22 50 38 Cannon . | . . . Launcher . | . . . Special . | . . . Kinetic 100 | 22 50 28 Thermal . | . . . Explosive . | . . . Electromagnetic 10 | . . 10 Robot Hit Streak 20 | 4 20 3 Robot Miss Streak 4 | 2 4 3 Penetration Max . | . . . Secondary Targets . | . . . Shots Hit Robots 61 | 9 37 15 Core Hits 24 | 5 11 8 Critical Kills . | . . . Critical Parts Destroyed . | . . . Critical Strikes . | . . . Melee Attacks . | . . . Impact . | . . . Slashing . | . . . Piercing . | . . . Sneak Attacks . | . . . Combat Hostiles . | . . . Follow-up Attacks . | . . . Damage Inflicted 607 | 103 304 200 Guns 575 | 96 304 175 Cannons . | . . . Explosions . | . . . Melee . | . . . Ramming 32 | 7 . 25 Kinetic 552 | 96 304 152 Thermal . | . . . Explosive . | . . . Electromagnetic 23 | . . 23 Impact . | . . . Slashing . | . . . Piercing . | . . . Highest Corruption . | . . . Average Corruption . | . . . Corruption Purged . | . . . Corruption Blocked . | . . . Overload Shots . | . . . Overflow Damage . | . . . Projectiles . | . . . Explosions . | . . . Melee . | . . . Knockbacks . | . . . Impact . | . . . Kinetic . | . . . Secondary . | . . . Self-Inflicted Damage 11 | . . 11 Shots . | . . . Rammed 16 | 3 . 13 Targets Rammed 16 | 3 . 13 Kicked . | . . . Crushed . | . . . Highest Temperature 25 | . 25 . Average Temperature 6 | . 6 . Received Heat Transfer 312 | . 312 . Siege Activations . | . . . Robots Corrupted . | . . . Combat Hostiles . | . . . Parts Fried . | . . . Impact Corruptions . | . . . Robots Melted . | . . . Combat Hostiles . | . . . Parts Melted . | . . . Heat Transferred . | . . . Parts Sabotaged . | . . . Parts Stolen . | . . . Parts Stripped . | . . . Power Chain Reactions . | . . . Alert | -11 -10 -10 ------- Run | Yrd Mat Min Peak Influence 50 | 10 50 35 Initial 6 | . 6 . Average 10 | 2 26 1 Maximum Alert Level . | . . . Low Security (%) 100 | 100 100 100 Level 1 . | . . . Level 2 . | . . . Level 3 . | . . . Level 4 . | . . . Level 5 . | . . . High Security . | . . . Max Security . | . . . Squads Dispatched . | . . . Investigation . | . . . Extermination . | . . . Reinforcement . | . . . Assault . | . . . Garrison . | . . . Intercept . | . . . Searches Triggered . | . . . Construction Impeded . | . . . Haulers Reinforced . | . . . Active Scanning Responses . | . . . Cargo Convoy Interrupts . | . . . Stealth | -11 -10 -10 --------- Run | Yrd Mat Min Distress Signals . | . . . Communications Jammed . | . . . Distress Signals . | . . . Times Spotted 6 | . 2 4 Peak Tracking Total 3 | . 2 3 Tactical Retreats 1 | . . 1 Traps | -11 -10 -10 ------- Run | Yrd Mat Min Traps Triggered 1 | . 1 . Indirectly . | . . . Trap Hack Attempts . | . . . Triggered . | . . . Disarmed . | . . . Reprogrammed . | . . . Reused . | . . . Traps Extracted . | . . . Installed . | . . . Triggered . | . . . Machines | -11 -10 -10 ---------- Run | Yrd Mat Min Machines Disabled . | . . . Max in Single Turn . | . . . Machines Repaired . | . . . Machines Dismantled . | . . . Machines Sabotaged . | . . . Overloaded Fab Kills . | . . . Hacking | -11 -10 -10 --------- Run | Yrd Mat Min Machines Accessed 3 | . 3 . Terminals 1 | . 1 . Fabricators . | . . . Repair Stations 1 | . 1 . Recycling Units 1 | . 1 . Scanalyzers . | . . . Garrison Access . | . . . Total Hacks 8 | . 8 . Successful 6 | . 6 . Failed 2 | . 2 . Catastrophic . | . . . Database Lockouts . | . . . Manual . | . . . Terminals 3 | . 3 . Fabricators . | . . . Repair Stations 3 | . 3 . Recycling Units 2 | . 2 . Scanalyzers . | . . . Garrison Access . | . . . Terminal Hacks 1 | . 1 . Record 1 | . 1 . Fabricator Hacks . | . . . Repair Station Hacks 3 | . 3 . Scan Component 1 | . 1 . Repair 1 | . 1 . Refit 1 | . 1 . Recycling Unit Hacks 2 | . 2 . Process 1 | . 1 . Report Inventory 1 | . 1 . Scanalyzer . | . . . Garrison Access Hacks . | . . . Unauthorized Hacks . | . . . Terminals . | . . . Fabricators . | . . . Repair Stations . | . . . Recycling Units . | . . . Scanalyzers . | . . . Garrison Access . | . . . Data Cores Recovered . | . . . Used . | . . . Hacking Detections 2 | . 2 . Full Trace Events . | . . . Feedback Events . | . . . Feedback Blocked . | . . . Robot Schematics Acquired . | . . . Robots Built . | . . . Authchips . | . . . Time . | . . . Total Robot Build Rating . | . . . Part Schematics Acquired . | . . . Parts Built . | . . . Authchips . | . . . Time . | . . . Total Part Build Rating . | . . . Parts Repaired 1 | . 1 . Time 26 | . 26 . Parts Recycled . | . . . Recycled Matter . | . . . Retrieved Matter . | . . . Retrieved Components . | . . . Parts Scanalyzed . | . . . Part Schematics Acquired . | . . . Parts Damaged . | . . . Bothacking | -11 -10 -10 ------------ Run | Yrd Mat Min Used RIF Installer . | . . . Robots Hacked . | . . . Non-combat . | . . . Combat . | . . . Robot Hacks Applied . | . . . Relay Couplers Released . | . . . Fabnet Peak Effective % . | . . . Robots Rewired . | . . . Allies Hacked . | . . . Hacks Repelled . | . . . Allies | -11 -10 -10 -------- Run | Yrd Mat Min Total Allies . | . . . Largest Group . | . . . Highest-Rated Group . | . . . Highest-Rated Ally . | . . . Total Orders . | . . . Ally Attacks . | . . . Total Damage . | . . . Kills . | . . . Allies Corrupted . | . . . Allies Melted . | . . . Intel | -11 -10 -10 ------- Run | Yrd Mat Min Robot Analysis Total . | . . . Derelict Logs Recovered . | . . . Drone Launches . | . . . Drone Recoveries . | . . . Exploration | -11 -10 -10 ------------- Run | Yrd Mat Min Turns Passed 1174 | 352 420 402 Spaces Moved 584 | 194 187 203 Core 21 | 8 . 13 Treads 551 | 174 187 190 Legs 12 | 12 . . Wheels . | . . . Hover . | . . . Flight . | . . . Fastest Speed 50 | 50 160 100 Average Speed 156 | 152 160 156 Slowest Speed 160 | 160 160 160 Overloaded Moves . | . . . Propulsion Burnouts . | . . . Robots Hopped . | . . . Cave-ins Triggered . | . . . Exploration Rate (%) 28 | 8 32 44 Regions Visited 2 Branch Regions 1 Pre-discovered Areas . | . . . Known Exits Taken . | . . . Unknown Exits Taken 2 | 1 1 . Scrap Searched 1 | . . 1 Spaces Dug . | . . . Terrain Destroyed . | . . . Melee . | . . . Projectile . | . . . AOE . | . . . Terrain Rammed . | . . . Walls Destroyed . | . . . Machines Disabled . | . . . Actions | -11 -10 -10 --------- Run | Yrd Mat Min Total 752 | 230 267 255 Wait 26 | . 26 . Move 582 | 193 186 203 Hop . | . . . Pick Up 9 | 6 3 . Fast Attach 2 | . 1 1 Attach 7 | 6 1 . Detach . | . . . Swap . | . . . Drop . | . . . Fire 110 | 22 50 38 Melee . | . . . Ram 13 | . . 13 Kick . | . . . Crush 3 | 3 . . Escape Stasis . | . . . Rewire . | . . . Trap . | . . . Miscellaneous . | . . . Route ------- -11/Scrapyard -10/Materials -10/Mines History --------- Turn | Location | Event 11 | -11/Scrapyard | Discovered new exit (range 15) 353 | -11/Scrapyard | Entered Materials 354 | -10/Materials | Build established: Mutant 421 | -10/Materials | Repaired Med. Matter Pod 741 | -10/Materials | Discovered new exit (range 12) 773 | -10/Materials | Entered Mines 1152 | -10/Mines | Core integrity fell below 50% 1165 | -10/Mines | Core integrity fell below 20% 1175 | -10/Mines | Destroyed by S-10 Pest with Light Assault Rifle Last Messages --------------- LOCATION=UNKNOWN GOAL=ESCAPE 00774_ A derelict wanders into view. 00857_ 1A-C9B(g) destroyed. 00861_ Acquired 31 matter. 00985_ Searching scrap... 00985_ Found Sml. Battery. 00985_ Found EM Pulse Gun. 00985_ Found Heat Sink. 00985_ Found 63 Matter. 00992_ Acquired EM Pulse Gun. 01118_ Lgt. Assault Rifle destroyed. 01123_ K-01 Serf collects debris. 01131_ S-10 Pest destroyed. 01140_ Aluminum Leg destroyed. 01146_ EM Pulse Gun destroyed. 01149_ Lgt. Treads destroyed. 01150_ R-06 Scavenger collects Corrupted Flight Unit. 01151_ Slammed into S-10 Pest. Map ----- +----------------------------------------------------+ | | | | | | | | | ?????????????????????????????????????????????????? | | ??????????????????????????####???????????????????? | | ##???????????????????????## ##??????????????????? | | ##??????????????????????# #??????????????????? | | #??????????????????????# #??????????????????? | | #??????????????####????# ##??????????????????? | | ##?????????????## #???## #???????????????????? | | ##????????????## #??## #???????????????????? | | ##??????????## #??# ##???????????????????? | | #????????### ##??# ##???????????????????? | | #???????## ##??# ##??????????????????? | | #???????# ##?## ##?????????????????? | | ##?###??# #### #?????????????????? | | ## ##?## ## ## #?????????????????? | | #??####?## ##?????????????????? | | #???????## ##??????????????????? | | ##??????## ##???????????????????? | | ### #???????# ##???????? ???????? | | ##?? #???????# ####### ??????? | | #??# ######### %s ??????? | | #### !% %s% ??????? | | * ## ! """ @%%####### #????????? | | %! ### ##### """ %%##??????????#????????? | | ## ###### """ %% ##??????????????????? | | ?# ### #??????????????????? | | ?# #?## #?????????????????? | | ?# #??# ######## ### #?????????????????? | | ?# #??# #??????# ###?### ##?????????????????? | | ?# #??# #?###### #?????#####??????????????????? | | ## #??# ### r ###??????????????????????????? | | # #??# ######?????????????????????? | | ##?# ## ##????????????????????? | | ### ##???????????????????? | | """ #???????????????????? | | ##### """ #???????????????????? | | # #???## """ ##???????????????????? | | # #???# #????????????????????? | | ## #???## #????????????????????? | | ?### ##????## ##????????????????????? | | ???## ##??????#####?????????????????????? | | ????# ##?????????????????????????????????? | | ????## #??????????????????????????????????? | | ?????### #??????????????????????????????????? | | ???????## #??????????????????????????????????? | | ????????## ##??????????????????????????????????? | | ?????????## #???????????????????????????????????? | +----------------------------------------------------+ Best States ------------- Heat Dissipation 25 Energy Generation 10 Energy Capacity 125 Matter Stores 386 Matter Capacity 400 Sight Range 16 Terrain Scan Density 10 Armor Coverage 80 Evasion (%) 45 Recoil Reduction 1 Item Schematics ----------------- None Robot Schematics ------------------ None Fabricated ------------ Nothing Alien Tech Used ----------------- None Achievements -------------- None Challenges ------------ None Game ------ Seed VariablePointyRifle Manual? 0 Play Time 00:15:32 Cumulative 47.0 hours Start 2024.11.09 @ 22:28:57 End 2024.11.09 @ 22:43:22 Sessions 1 Manual Loads 0 Difficulty Rogue Special Mode None Game No. 74 Rogue 74 Adventurer 0 Explorer 0 Win Type - Total 0 Types 0/0/0/0/0/0/0/0/0 Lore% 30 Gallery% 41 Achievement% 35 Wizard Run 0 Options --------- Layout 1 ASCII 0 Keyboard 0 Movement Arrows Keybinds 0 Fullscreen 2 Font 24/Smallcaps Map View 50x35 Zoom Use 0% Tactical HUD 1 Map Filters NONE Filters NONE Steam 1 RUN: 2ea81d01-5a87-4dd0-af68-aad0941e7129